[Event "Championnat du monde jeunes U12"]
[Date "2024.11.22"]
[White "Mintz, Nathan"]
[Black "Liu, Richard Jingjie"]
[WhiteElo "1633"]
[BlackElo "1795"]
[Round "7.52"]
[Result "0-1"]
[TimeControl "5400+30"]

1. c4 {[%clk 1:30:58]} 1... e5 {[%clk 1:30:59]} 2. Nc3 {[%clk 1:31:22]} 2... Bc5
{[%clk 1:31:17]} 3. d3 {[%clk 1:31:32]} 3... d6 {[%clk 1:31:40]} 4. g3 {[%clk
1:31:55]} 4... Nc6 {[%clk 1:32:05]} 5. Bg2 {[%clk 1:32:13]} 5... a6 {[%clk
1:32:33]} 6. e4 {[%clk 1:32:09]} 6... Nge7 {[%clk 1:32:22]} 7. Nge2 {[%clk
1:32:15]} 7... h5 {[%clk 1:32:16]} 8. h3 {[%clk 1:32:14]} 8... h4 {[%clk
1:32:38]} 9. g4 {[%clk 1:32:14]} 9... Ng6 {[%clk 1:32:13]} 10. O-O {[%clk
1:27:47]} 10... Ba7 {[%clk 1:31:37]} 11. Kh2 {[%clk 1:25:29]} 11... Nd4 {[%clk
1:30:29]} 12. Be3 {[%clk 1:20:34]} 12... Be6 {[%clk 1:30:25]} 13. Bxd4 {[%clk
1:17:11]} 13... exd4 {[%clk 1:30:53]} 14. Nd5 {[%clk 1:16:16]} 14... c6 {[%clk
1:28:52]} 15. Ndf4 {[%clk 1:13:55]} 15... Nxf4 {[%clk 1:28:07]} 16. Nxf4 {[%clk
1:14:04]} 16... Bb8 {[%clk 1:28:04]} 17. Kh1 {[%clk 1:03:32]} 17... b5 {[%clk
1:21:31]} 18. Nxe6 {[%clk 0:58:39]} 18... fxe6 {[%clk 1:22:00]} 19. f4 {[%clk
0:55:11]} 19... Ra7 {[%clk 1:17:28]} 20. Qb3 {[%clk 0:51:29]} 20... Re7 {[%clk
1:13:30]} 21. e5 {[%clk 0:46:05]} 21... O-O {[%clk 1:09:53]} 22. cxb5 {[%clk
0:32:17]} 22... cxb5 23. exd6 {[%clk 0:24:21]} 23... Qxd6 {[%clk 1:06:01]} 24.
Rac1 {[%clk 0:19:52]} 24... Rxf4 {[%clk 1:05:01]} 25. Rc8+ {[%clk 0:18:40]}
25... Kh7 {[%clk 1:02:53]} 26. Rxf4 {[%clk 0:16:23]} 26... Qxf4 {[%clk 1:02:37]}
27. Be4+ {[%clk 0:15:56]} 27... g6 {[%clk 1:02:29]} 28. Rxb8 {[%clk 0:09:24]}
28... Qxb8 {[%clk 1:02:37]} 29. Qa3 {[%clk 0:09:05]} 29... Qf8 {[%clk 1:01:17]}
30. Qc5 {[%clk 0:07:20]} 30... Qf6 {[%clk 0:59:09]} 31. g5 {[%clk 0:05:29]}
31... Qf1+ {[%clk 0:58:56]} 32. Kh2 {[%clk 0:05:46]} 32... Qf4+ {[%clk 0:58:22]}
33. Kh1 {[%clk 0:05:38]} 33... Rc7 {[%clk 0:58:16]} 34. Qxc7+ {[%clk 0:01:52]}
34... Qxc7 {[%clk 0:58:43]} 35. b3 {[%clk 0:01:48]} 35... Qc1+ {[%clk 0:58:45]}
36. Kg2 {[%clk 0:02:04]} 36... Qxg5+ {[%clk 0:59:13]} 37. Kh2 {[%clk 0:02:18]}
37... Qg3+ {[%clk 0:59:32]} 38. Kh1 {[%clk 0:02:38]} 38... Qxh3+ {[%clk
0:59:57]} 39. Kg1 {[%clk 0:02:59]} 39... Qe3+ {[%clk 0:59:55]} 40. Kh1 {[%clk
0:03:13]} 40... h3 {[%clk 1:00:12]} 41. a4 {[%clk 0:03:22]} 41... Qf2 {[%clk
1:00:13]} 42. axb5 {[%clk 0:02:52]} 42... h2 {[%clk 1:00:39]} 43. bxa6 {[%clk
0:02:47]} 43... Qg1# {[%clk 1:00:31]} 0-1

[Variant "Standard"]
[Site "Europe Echecs"]

[Event "Championnat du monde jeunes U12"]
[Date "2024.11.22"]
[White "Krasniqi, Troi"]
[Black "Nguyen Le Nguyen"]
[WhiteElo "1610"]
[BlackElo "1782"]
[Round "7.53"]
[Result "0-1"]
[TimeControl "5400+30"]

1. e4 {[%clk 1:30:58]} 1... c5 {[%clk 1:30:58]} 2. Nf3 {[%clk 1:31:22]} 2... d6
{[%clk 1:31:25]} 3. d4 {[%clk 1:31:46]} 3... cxd4 {[%clk 1:31:52]} 4. Nxd4
{[%clk 1:32:07]} 4... Nf6 {[%clk 1:32:17]} 5. Nc3 {[%clk 1:32:32]} 5... a6
{[%clk 1:32:45]} 6. Bd3 {[%clk 1:32:39]} 6... e5 {[%clk 1:32:59]} 7. Nb3 {[%clk
1:32:57]} 7... Be6 {[%clk 1:33:21]} 8. Bg5 {[%clk 1:32:48]} 8... Nbd7 {[%clk
1:33:17]} 9. Qd2 {[%clk 1:31:53]} 9... Be7 {[%clk 1:32:39]} 10. f3 {[%clk
1:29:30]} 10... b5 {[%clk 1:32:42]} 11. a3 {[%clk 1:27:13]} 11... Nc5 {[%clk
1:31:03]} 12. Nxc5 {[%clk 1:24:03]} 12... dxc5 {[%clk 1:31:30]} 13. O-O {[%clk
1:22:13]} 13... O-O {[%clk 1:23:08]} 14. Rad1 {[%clk 1:15:28]} 14... Qb6 {[%clk
1:23:09]} 15. Qf2 {[%clk 1:10:13]} 15... Rfd8 {[%clk 0:57:17]} 16. f4 {[%clk
0:54:36]} 16... Ng4 {[%clk 0:56:30]} 17. Qf3 {[%clk 0:52:31]} 17... c4+ {[%clk
0:55:36]} 18. Kh1 {[%clk 0:52:44]} 18... Bxg5 {[%clk 0:54:40]} 19. f5 {[%clk
0:52:49]} 19... Ne3 {[%clk 0:50:26]} 20. fxe6 {[%clk 0:52:35]} 20... Qxe6 {[%clk
0:50:41]} 21. Be2 {[%clk 0:52:28]} 21... Rxd1 {[%clk 0:50:51]} 22. Rxd1 {[%clk
0:52:24]} 22... Nxd1 {[%clk 0:51:14]} 23. Bxd1 {[%clk 0:52:44]} 23... Qf6 {[%clk
0:49:08]} 24. Qe2 {[%clk 0:52:47]} 24... Qf4 {[%clk 0:48:53]} 25. Nd5 {[%clk
0:52:25]} 25... Qd2 {[%clk 0:48:55]} 26. Qf1 {[%clk 0:52:12]} 26... f5 {[%clk
0:49:12]} 27. h3 {[%clk 0:48:46]} 27... fxe4 {[%clk 0:48:18]} 28. Nc3 {[%clk
0:47:47]} 28... Rf8 {[%clk 0:48:04]} 29. Qg1 {[%clk 0:47:41]} 29... Be3 {[%clk
0:48:15]} 30. Nxe4 {[%clk 0:47:27]} 30... Qd4 {[%clk 0:48:09]} 31. Qe1 {[%clk
0:47:28]} 31... Qxe4 {[%clk 0:48:31]} 32. Bf3 {[%clk 0:47:50]} 32... Rxf3 {[%clk
0:48:48]} 33. gxf3 {[%clk 0:48:03]} 33... Qxf3+ {[%clk 0:49:13]} 34. Kh2 {[%clk
0:48:30]} 34... e4 {[%clk 0:49:27]} 35. b3 {[%clk 0:48:23]} 35... Bf2 {[%clk
0:49:44]} 36. Qf1 {[%clk 0:47:51]} 36... Bg3+ {[%clk 0:50:08]} 37. Kg1 {[%clk
0:48:20]} 37... Bh2+ {[%clk 0:50:29]} 0-1

[Variant "Standard"]
[Site "Europe Echecs"]

[Event "Championnat du monde jeunes U12"]
[Date "2024.11.22"]
[White "Macia Tell, Dario"]
[Black "Vaidyanathan, Adithya"]
[WhiteElo "1520"]
[BlackElo "2018"]
[Round "7.54"]
[Result "0-1"]
[TimeControl "5400+30"]

1. d4 {[%clk 1:30:57]} 1... Nf6 {[%clk 1:30:58]} 2. c4 {[%clk 1:31:20]} 2... c5
{[%clk 1:31:26]} 3. d5 {[%clk 1:31:42]} 3... b5 {[%clk 1:31:56]} 4. cxb5 {[%clk
1:32:06]} 4... a6 {[%clk 1:32:25]} 5. bxa6 {[%clk 1:32:30]} 5... Bxa6 {[%clk
1:32:52]} 6. g3 {[%clk 1:32:38]} 6... g6 {[%clk 1:33:16]} 7. Nc3 {[%clk
1:31:36]} 7... Bg7 {[%clk 1:33:40]} 8. Bg2 {[%clk 1:31:31]} 8... d6 {[%clk
1:34:05]} 9. e4 {[%clk 1:30:05]} 9... O-O {[%clk 1:34:29]} 10. Nge2 {[%clk
1:29:57]} 10... Nbd7 {[%clk 1:34:00]} 11. O-O {[%clk 1:29:39]} 11... Ne5 {[%clk
1:32:49]} 12. Rb1 {[%clk 1:27:51]} 12... Qb6 {[%clk 1:24:28]} 13. b3 {[%clk
1:21:33]} 13... Bd3 {[%clk 1:21:44]} 14. Rb2 {[%clk 1:18:01]} 14... Qa6 {[%clk
1:21:17]} 15. f4 {[%clk 1:14:29]} 15... Neg4 {[%clk 1:10:32]} 16. h3 {[%clk
1:11:35]} 16... Nh6 {[%clk 0:59:32]} 17. Rd2 {[%clk 1:06:49]} 17... Bxe2 {[%clk
0:58:17]} 18. Qxe2 {[%clk 1:06:37]} 18... Nh5 {[%clk 0:50:56]} 19. Qxa6 {[%clk
0:59:28]} 19... Rxa6 {[%clk 0:51:24]} 20. Rd3 {[%clk 0:59:49]} 20... f5 {[%clk
0:50:02]} 21. exf5 {[%clk 0:56:22]} 21... Nxf5 {[%clk 0:49:53]} 22. Ne4 Rxa2
{[%clk 0:43:19]} 23. Kh2 {[%clk 0:46:33]} 23... Rb8 {[%clk 0:36:19]} 24. Re1
{[%clk 0:35:23]} 24... Nd4 {[%clk 0:31:47]} 25. Nd2 {[%clk 0:31:37]} 25... Kf7
{[%clk 0:28:26]} 26. Rde3 {[%clk 0:28:31]} 26... Nf5 {[%clk 0:26:51]} 27. Rd3
{[%clk 0:26:19]} 27... Nhxg3 {[%clk 0:26:43]} 28. Rxg3 {[%clk 0:26:32]} 28...
Nxg3 {[%clk 0:27:09]} 29. Kxg3 {[%clk 0:26:51]} 29... Bc3 {[%clk 0:27:28]} 30.
Ne4 {[%clk 0:26:31]} 30... Bxe1+ {[%clk 0:27:48]} 0-1

[Variant "Standard"]
[Site "Europe Echecs"]

[Event "Championnat du monde jeunes U12"]
[Date "2024.11.22"]
[White "Huang, Hao-Xuan"]
[Black "Sason, Noam"]
[WhiteElo "1516"]
[BlackElo "2017"]
[Round "7.55"]
[Result "0-1"]
[TimeControl "5400+30"]

1. e4 {[%clk 1:30:57]} 1... c5 {[%clk 1:30:55]} 2. c3 {[%clk 1:31:07]} 2... d5
{[%clk 1:31:21]} 3. exd5 {[%clk 1:31:14]} 3... Qxd5 {[%clk 1:31:43]} 4. d4
{[%clk 1:30:57]} 4... Nf6 {[%clk 1:32:06]} 5. Nf3 {[%clk 1:27:37]} 5... e6
{[%clk 1:32:29]} 6. Be2 {[%clk 1:24:38]} 6... Be7 {[%clk 1:32:49]} 7. O-O {[%clk
1:22:56]} 7... O-O {[%clk 1:33:08]} 8. Re1 {[%clk 1:20:33]} 8... Nc6 {[%clk
1:32:48]} 9. Be3 {[%clk 1:16:13]} 9... cxd4 {[%clk 1:32:46]} 10. cxd4 {[%clk
1:15:28]} 10... Rd8 {[%clk 1:32:09]} 11. Nc3 {[%clk 1:14:35]} 11... Qa5 {[%clk
1:32:31]} 12. Rc1 {[%clk 1:11:50]} 12... Bd7 {[%clk 1:28:56]} 13. Qb3 {[%clk
1:08:27]} 13... Qb4 {[%clk 1:28:17]} 14. Qc2 {[%clk 1:01:06]} 14... Rac8 {[%clk
1:27:20]} 15. a3 {[%clk 0:57:06]} 15... Qa5 {[%clk 1:26:07]} 16. Bd3 {[%clk
0:50:54]} 16... h6 {[%clk 1:24:40]} 17. Qb1 {[%clk 0:43:40]} 17... Nd5 {[%clk
1:21:21]} 18. Bd2 {[%clk 0:39:19]} 18... Nxc3 {[%clk 1:17:06]} 19. Bxc3 {[%clk
0:39:11]} 19... Qb6 {[%clk 1:16:41]} 20. Bc4 {[%clk 0:30:20]} 20... Be8 {[%clk
1:14:17]} 21. Ba2 {[%clk 0:25:40]} 21... Bf6 {[%clk 1:10:20]} 22. Rcd1 {[%clk
0:21:37]} 22... Ne7 {[%clk 1:03:28]} 23. Ne5 {[%clk 0:15:27]} 23... Nd5 {[%clk
1:02:38]} 24. Bd2 {[%clk 0:11:57]} 24... Ba4 {[%clk 0:57:33]} 25. b3 {[%clk
0:10:21]} 25... Be8 {[%clk 0:57:39]} 26. Nc4 {[%clk 0:10:03]} 26... Qa6 {[%clk
0:55:29]} 27. Qd3 {[%clk 0:07:54]} 27... Ne7 {[%clk 0:52:39]} 28. Bc3 {[%clk
0:06:35]} 28... Nf5 {[%clk 0:48:36]} 29. Re4 {[%clk 0:05:00]} 29... b5 {[%clk
0:45:52]} 30. Ne5 {[%clk 0:04:17]} 30... Qxa3 {[%clk 0:45:13]} 31. Bb1 {[%clk
0:02:53]} 31... Qxb3 {[%clk 0:44:05]} 32. Ba5 {[%clk 0:02:41]} 32... Qxd3 {[%clk
0:44:04]} 33. Bxd3 {[%clk 0:02:58]} 33... Rxd4 {[%clk 0:44:15]} 34. Rxd4 {[%clk
0:02:57]} 34... Nxd4 {[%clk 0:44:39]} 35. Ng4 {[%clk 0:02:56]} 35... Bg5 {[%clk
0:43:54]} 36. Ne3 {[%clk 0:01:54]} 36... Nb3 {[%clk 0:44:00]} 37. Bd2 {[%clk
0:01:05]} 37... Nxd2 {[%clk 0:44:11]} 38. Rxd2 {[%clk 0:01:29]} 38... b4 {[%clk
0:43:42]} 39. g3 {[%clk 0:00:47]} 39... Kf8 {[%clk 0:41:54]} 40. f4 {[%clk
0:01:02]} 40... Bf6 {[%clk 0:42:14]} 41. Kf2 {[%clk 0:00:47]} 41... b3 {[%clk
0:42:26]} 42. Nc4 {[%clk 0:00:43]} 42... Bb5 {[%clk 0:42:30]} 43. Nd6 {[%clk
0:00:42]} 43... Bxd3 {[%clk 0:42:56]} 44. Nxc8 {[%clk 0:00:54]} 44... b2 {[%clk
0:43:21]} 45. Rxb2 {[%clk 0:00:44]} 45... Bxb2 {[%clk 0:43:24]} 46. Ke1 {[%clk
0:00:47]} 46... Bc3+ {[%clk 0:43:37]} 47. Kd1 {[%clk 0:01:07]} 47... a5 {[%clk
0:43:55]} 48. Nb6 {[%clk 0:01:19]} 48... Bd4 {[%clk 0:44:20]} 49. Na4 {[%clk
0:01:26]} 49... Bb5 {[%clk 0:44:43]} 50. Nb2 {[%clk 0:01:16]} 50... Bxb2 {[%clk
0:45:07]} 51. Kc2 {[%clk 0:01:42]} 51... Bd4 {[%clk 0:45:27]} 52. Kb3 {[%clk
0:01:48]} 52... a4+ {[%clk 0:45:46]} 53. Ka3 {[%clk 0:01:58]} 53... Bc5+ {[%clk
0:46:08]} 54. Ka2 {[%clk 0:02:19]} 54... Bc4+ {[%clk 0:46:33]} 55. Kb2 {[%clk
0:02:00]} 55... a3+ {[%clk 0:46:57]} 56. Ka1 {[%clk 0:01:20]} 56... a2 {[%clk
0:47:16]} 57. Kb2 {[%clk 0:01:42]} 57... Bd4+ {[%clk 0:47:41]} 58. Kc2 {[%clk
0:02:00]} 58... a1=Q {[%clk 0:48:04]} 59. Kd2 {[%clk 0:02:18]} 59... Qb2+ {[%clk
0:48:14]} 60. Kd1 {[%clk 0:02:23]} 60... Be3 {[%clk 0:48:34]} 61. h4 {[%clk
0:02:34]} 61... Qe2# {[%clk 0:48:51]} 0-1

[Variant "Standard"]
[Site "Europe Echecs"]

[Event "Championnat du monde jeunes U12"]
[Date "2024.11.22"]
[White "Vorobyov, Radmir"]
[Black "Lenoks, Martin Jr."]
[WhiteElo "2017"]
[BlackElo "1514"]
[Round "7.56"]
[Result "1-0"]
[TimeControl "5400+30"]

1. d4 {[%clk 1:30:58]} 1... c6 {[%clk 1:30:56]} 2. Nf3 {[%clk 1:31:18]} 2... d5
{[%clk 1:31:08]} 3. g3 {[%clk 1:31:40]} 3... Bf5 {[%clk 1:31:09]} 4. Bg2 {[%clk
1:32:06]} 4... e6 {[%clk 1:30:55]} 5. O-O {[%clk 1:32:31]} 5... h6 {[%clk
1:31:12]} 6. c4 {[%clk 1:31:33]} 6... Nd7 {[%clk 1:28:27]} 7. Nc3 {[%clk
1:31:36]} 7... dxc4 {[%clk 1:25:50]} 8. e4 {[%clk 1:26:14]} 8... Bh7 {[%clk
1:23:19]} 9. Qe2 {[%clk 1:25:18]} 9... Nb6 {[%clk 1:18:08]} 10. Be3 {[%clk
1:22:53]} 10... Bb4 {[%clk 1:16:12]} 11. Ne5 {[%clk 1:21:17]} 11... Bxc3 {[%clk
1:13:47]} 12. bxc3 {[%clk 1:21:40]} 12... Nf6 {[%clk 1:12:22]} 13. f3 {[%clk
1:04:29]} 13... O-O {[%clk 1:10:35]} 14. Nxc4 {[%clk 1:04:42]} 14... Nxc4 {[%clk
1:10:31]} 15. Qxc4 {[%clk 1:05:09]} 15... Qe7 {[%clk 1:01:14]} 16. Rad1 {[%clk
1:03:12]} 16... Rfd8 {[%clk 0:57:13]} 17. Rfe1 {[%clk 1:03:31]} 17... Rd7 {[%clk
0:56:09]} 18. Bf2 {[%clk 1:01:08]} 18... Rad8 {[%clk 0:52:14]} 19. Qb3 {[%clk
0:59:18]} 19... b5 {[%clk 0:40:29]} 20. a4 {[%clk 0:56:23]} 20... a6 {[%clk
0:35:14]} 21. h3 {[%clk 0:54:34]} 21... Rb7 {[%clk 0:31:01]} 22. f4 {[%clk
0:54:22]} 22... a5 {[%clk 0:27:42]} 23. d5 {[%clk 0:48:24]} 23... Qc7 {[%clk
0:22:21]} 24. dxe6 {[%clk 0:46:17]} 24... Rxd1 {[%clk 0:19:49]} 25. Rxd1 {[%clk
0:46:42]} 25... bxa4 {[%clk 0:20:12]} 26. exf7+ {[%clk 0:46:59]} 26... Qxf7
{[%clk 0:20:12]} 27. Rd8+ {[%clk 0:47:24]} 27... Ne8 {[%clk 0:20:28]} 28. Rxe8#
{[%clk 0:47:48]} 1-0

[Variant "Standard"]
[Site "Europe Echecs"]

[Event "Championnat du monde jeunes U12"]
[Date "2024.11.22"]
[White "Sharku, Uvejs"]
[Black "Yin, Milo"]
[WhiteElo "1516"]
[BlackElo "1925"]
[Round "7.57"]
[Result "1-0"]
[TimeControl "5400+30"]

1. d4 {[%clk 1:30:45]} 1... d5 {[%clk 1:30:47]} 2. Bf4 {[%clk 1:30:33]} 2... Nf6
{[%clk 1:30:50]} 3. e3 {[%clk 1:29:42]} 3... Bf5 {[%clk 1:28:36]} 4. Nf3 {[%clk
1:29:30]} 4... e6 {[%clk 1:28:56]} 5. Bd3 {[%clk 1:28:51]} 5... Bg6 {[%clk
1:29:08]} 6. c3 {[%clk 1:27:00]} 6... Bd6 {[%clk 1:28:21]} 7. Bg3 {[%clk
1:24:09]} 7... c5 {[%clk 1:20:00]} 8. Ne5 {[%clk 1:21:45]} 8... Nc6 {[%clk
1:16:40]} 9. f4 {[%clk 1:18:56]} 9... Bxd3 {[%clk 1:11:38]} 10. Qxd3 {[%clk
1:17:48]} 10... Ne4 {[%clk 1:07:47]} 11. Nd2 {[%clk 1:06:59]} 11... Nxd2 {[%clk
1:02:42]} 12. Qxd2 {[%clk 1:06:24]} 12... f6 {[%clk 1:01:49]} 13. Nf3 {[%clk
0:53:33]} 13... c4 {[%clk 0:55:31]} 14. h4 {[%clk 0:40:07]} 14... b5 {[%clk
0:47:13]} 15. O-O {[%clk 0:37:07]} 15... h5 {[%clk 0:38:07]} 16. Rfe1 {[%clk
0:33:31]} 16... f5 {[%clk 0:34:09]} 17. Ng5 {[%clk 0:32:19]} 17... Qf6 {[%clk
0:30:10]} 18. Rab1 {[%clk 0:28:05]} 18... b4 {[%clk 0:25:03]} 19. Red1 {[%clk
0:21:34]} 19... O-O {[%clk 0:22:34]} 20. Qe2 {[%clk 0:17:57]} 20... g6 {[%clk
0:22:06]} 21. Be1 {[%clk 0:17:44]} 21... Rab8 {[%clk 0:14:33]} 22. Qc2 {[%clk
0:13:33]} 22... Rb6 {[%clk 0:12:28]} 23. cxb4 {[%clk 0:11:07]} 23... Bxb4 {[%clk
0:11:59]} 24. b3 {[%clk 0:10:50]} 24... Bxe1 {[%clk 0:09:08]} 25. Rxe1 {[%clk
0:11:14]} 25... Nb4 {[%clk 0:08:26]} 26. Qd2 {[%clk 0:10:14]} 26... Nd3 {[%clk
0:05:29]} 27. Red1 {[%clk 0:10:27]} 27... Rfb8 {[%clk 0:05:21]} 28. Qc2 {[%clk
0:08:52]} 28... Nb4 {[%clk 0:04:50]} 29. Qe2 {[%clk 0:08:29]} 29... c3 {[%clk
0:01:41]} 30. Rdc1 {[%clk 0:06:25]} 30... Ra6 {[%clk 0:01:26]} 31. Rxc3 {[%clk
0:03:49]} 31... Nxa2 {[%clk 0:00:52]} 32. Rc8+ {[%clk 0:02:15]} 32... Rxc8
{[%clk 0:01:15]} 33. Qxa6 {[%clk 0:02:39]} 33... Rc2 {[%clk 0:00:51]} 34. Qxa7
{[%clk 0:02:22]} 34... Nc3 {[%clk 0:00:37]} 35. Ra1 {[%clk 0:02:32]} 35... Qg7
{[%clk 0:00:35]} 36. Qb8+ {[%clk 0:02:29]} 36... Qf8 {[%clk 0:00:55]} 37. Qb7
{[%clk 0:01:45]} 37... Ne2+ {[%clk 0:00:39]} 38. Kh2 {[%clk 0:02:08]} 38... Qe8
{[%clk 0:00:35]} 39. Ra8 {[%clk 0:02:13]} 39... Rc8 {[%clk 0:00:36]} 40. Rxc8
{[%clk 0:02:35]} 1-0

[Variant "Standard"]
[Site "Europe Echecs"]

[Event "Championnat du monde jeunes U12"]
[Date "2024.11.22"]
[White "Andreiev, Andrii"]
[Black "Sobirov, Feruzbek"]
[WhiteElo "1704"]
[BlackElo "1487"]
[Round "7.58"]
[Result "1-0"]
[TimeControl "5400+30"]

1. e4 {[%clk 1:30:58]} 1... e6 {[%clk 1:30:35]} 2. d4 {[%clk 1:31:21]} 2... d5
{[%clk 1:30:43]} 3. Nc3 {[%clk 1:31:40]} 3... Nf6 {[%clk 1:31:04]} 4. e5 {[%clk
1:32:03]} 4... Nfd7 {[%clk 1:31:26]} 5. Nf3 {[%clk 1:32:00]} 5... a6 {[%clk
1:31:19]} 6. Bd3 {[%clk 1:31:29]} 6... c5 {[%clk 1:30:42]} 7. dxc5 {[%clk
1:31:17]} 7... Bxc5 {[%clk 1:30:58]} 8. O-O {[%clk 1:31:13]} 8... Nc6 {[%clk
1:31:19]} 9. Re1 {[%clk 1:31:12]} 9... Qb6 {[%clk 1:31:30]} 10. Be3 {[%clk
1:30:37]} 10... d4 {[%clk 1:30:51]} 11. Na4 {[%clk 1:30:44]} 11... Qa5 {[%clk
1:31:14]} 12. Nxc5 {[%clk 1:30:38]} 12... Qxc5 {[%clk 1:29:35]} 13. Nxd4 {[%clk
1:29:38]} 13... Nxd4 {[%clk 1:29:40]} 14. c3 {[%clk 1:29:48]} 14... Qxe5 {[%clk
1:29:09]} 15. Bxd4 {[%clk 1:30:06]} 15... Qg5 {[%clk 1:29:27]} 16. Re4 {[%clk
1:28:48]} 16... Nf6 {[%clk 1:24:12]} 17. Re3 {[%clk 1:28:36]} 17... Qd5 {[%clk
1:20:38]} 18. Re5 {[%clk 1:25:46]} 18... Qd8 {[%clk 1:20:04]} 19. Rg5 {[%clk
1:25:27]} 19... O-O {[%clk 1:19:09]} 20. Qf3 {[%clk 1:24:59]} 20... Ne8 {[%clk
1:17:53]} 21. Qh5 {[%clk 1:22:51]} 21... h6 {[%clk 1:17:18]} 22. Qxh6 {[%clk
1:22:56]} 22... f6 {[%clk 1:16:57]} 23. Rg3 {[%clk 1:22:31]} 23... Rf7 {[%clk
1:15:04]} 24. Qh7+ {[%clk 1:21:29]} 24... Kf8 {[%clk 1:15:21]} 25. Qh8+ {[%clk
1:21:09]} 25... Ke7 {[%clk 1:15:44]} 26. Bg6 {[%clk 1:20:15]} 26... b6 {[%clk
1:13:57]} 27. Qg8 {[%clk 1:19:39]} 27... Rf8 {[%clk 1:14:04]} 28. Qh7 {[%clk
1:19:27]} 28... e5 {[%clk 1:11:49]} 29. Bxe8 {[%clk 1:19:12]} 29... Rxe8 {[%clk
1:07:32]} 30. Rxg7+ {[%clk 1:19:19]} 30... Ke6 {[%clk 1:07:50]} 31. Qh3+ {[%clk
1:18:06]} 31... Kd6 {[%clk 1:06:53]} 32. Qg3 {[%clk 1:17:55]} 32... Bd7 {[%clk
1:05:54]} 33. Rd1 {[%clk 1:16:36]} 33... Kc6 {[%clk 1:04:58]} 34. Qf3+ {[%clk
1:16:25]} 34... e4 {[%clk 1:00:03]} 35. Qf4 {[%clk 1:15:27]} 35... Re6 {[%clk
0:58:40]} 36. Be3 {[%clk 1:14:27]} 36... Ra7 {[%clk 0:58:30]} 37. Qf5 {[%clk
1:13:32]} 37... Qe8 {[%clk 0:57:33]} 38. Qd5+ {[%clk 1:13:33]} 38... Kc7 {[%clk
0:57:23]} 39. Rxd7+ {[%clk 1:13:38]} 39... Kb8 {[%clk 0:57:20]} 40. Rd8+ {[%clk
1:13:56]} 40... Kc7 {[%clk 0:54:30]} 41. Rxe8 {[%clk 1:13:54]} 41... Rxe8 {[%clk
0:53:51]} 42. Qd7+ {[%clk 1:14:17]} 42... Kb8 {[%clk 0:53:56]} 43. Qxe8+ {[%clk
1:14:33]} 1-0

[Variant "Standard"]
[Site "Europe Echecs"]

[Event "Championnat du monde jeunes U12"]
[Date "2024.11.22"]
[White "Mohd Firdaus, Firast Haiqal"]
[Black "Teo, Hong Kai Javier"]
[WhiteElo "1514"]
[BlackElo "1675"]
[Round "7.59"]
[Result "0-1"]
[TimeControl "5400+30"]

1. Nf3 {[%clk 1:30:30]} 1... Nf6 {[%clk 1:29:37]} 2. g3 {[%clk 1:30:30]} 2... d5
{[%clk 1:29:35]} 3. d4 {[%clk 1:30:31]} 3... Bf5 {[%clk 1:28:51]} 4. Bg2 {[%clk
1:30:30]} 4... e6 {[%clk 1:28:30]} 5. Bf4 {[%clk 1:29:34]} 5... Be7 {[%clk
1:24:38]} 6. O-O {[%clk 1:28:48]} 6... h6 {[%clk 1:22:52]} 7. c4 {[%clk
1:26:27]} 7... c6 {[%clk 1:18:58]} 8. Qb3 {[%clk 1:19:58]} 8... Qb6 {[%clk
1:13:38]} 9. Qxb6 {[%clk 1:19:31]} 9... axb6 {[%clk 1:13:10]} 10. cxd5 {[%clk
1:19:18]} 10... cxd5 {[%clk 1:12:52]} 11. Nc3 {[%clk 1:18:39]} 11... Nc6 {[%clk
1:09:14]} 12. a3 {[%clk 1:15:27]} 12... Kd7 {[%clk 1:05:47]} 13. Ne5+ {[%clk
1:14:16]} 13... Nxe5 {[%clk 1:05:54]} 14. Bxe5 {[%clk 1:14:39]} 14... Rhc8
{[%clk 1:01:45]} 15. Rac1 {[%clk 1:00:26]} 15... Rc6 {[%clk 0:56:00]} 16. e4
{[%clk 0:36:09]} 16... dxe4 {[%clk 0:48:35]} 17. d5 {[%clk 0:31:09]} 17... exd5
{[%clk 0:40:47]} 18. Bxf6 {[%clk 0:30:38]} 18... Bxf6 {[%clk 0:40:28]} 19. Nxd5
{[%clk 0:29:51]} 19... Bd4 {[%clk 0:39:02]} 20. Rcd1 {[%clk 0:28:59]} 20... Ra4
{[%clk 0:20:20]} 21. b3 {[%clk 0:27:57]} 21... Rd6 {[%clk 0:20:07]} 22. Nxb6+
{[%clk 0:26:54]} 22... Bxb6 {[%clk 0:18:49]} 23. Rxd6+ {[%clk 0:26:55]} 23...
Kxd6 {[%clk 0:19:11]} 24. bxa4 {[%clk 0:27:17]} 24... Bc5 {[%clk 0:19:25]} 25.
Rb1 {[%clk 0:26:53]} 25... b6 {[%clk 0:19:12]} 26. Rb3 {[%clk 0:26:37]} 26...
Be6 {[%clk 0:17:30]} 27. Rb1 {[%clk 0:26:10]} 27... f5 {[%clk 0:17:23]} 28. Bf1
{[%clk 0:26:08]} 28... Bd5 {[%clk 0:16:01]} 29. Bh3 {[%clk 0:23:40]} 29... Ke5
{[%clk 0:15:26]} 30. Bg2 {[%clk 0:20:09]} 30... Bc6 {[%clk 0:14:03]} 31. a5
{[%clk 0:18:17]} 31... bxa5 {[%clk 0:13:50]} 32. Rc1 {[%clk 0:18:28]} 32... Kd5
{[%clk 0:13:16]} 33. Rd1+ {[%clk 0:17:55]} 33... Ke5 {[%clk 0:11:57]} 34. Rc1
{[%clk 0:18:12]} 34... Kd6 {[%clk 0:12:22]} 35. Bh3 {[%clk 0:17:29]} 35... g6
{[%clk 0:12:06]} 36. Ra1 {[%clk 0:17:12]} 36... a4 {[%clk 0:09:53]} 37. Kf1
{[%clk 0:17:30]} 37... Bb5+ {[%clk 0:10:02]} 38. Ke1 {[%clk 0:17:38]} 38... Bc4
{[%clk 0:09:51]} 39. Bf1 {[%clk 0:17:27]} 39... Bb3 {[%clk 0:10:02]} 40. Bb5
{[%clk 0:16:50]} 40... g5 {[%clk 0:09:32]} 41. Ke2 {[%clk 0:16:18]} 41... Ke5
{[%clk 0:08:38]} 42. f3 {[%clk 0:15:55]} 42... e3 {[%clk 0:08:26]} 43. Bd3
{[%clk 0:15:17]} 43... f4 {[%clk 0:07:32]} 44. g4 {[%clk 0:14:54]} 44... Bd6
{[%clk 0:06:46]} 45. Bb1 {[%clk 0:14:20]} 45... Kd4 {[%clk 0:06:37]} 46. Ba2
{[%clk 0:14:38]} 46... Kc3 {[%clk 0:05:32]} 47. Rc1+ {[%clk 0:07:57]} 47... Kb2
{[%clk 0:05:42]} 48. Bxb3 {[%clk 0:07:49]} 48... axb3 {[%clk 0:06:04]} 49. Rc6
{[%clk 0:07:46]} 49... Bxa3 {[%clk 0:04:08]} 50. Rxh6 {[%clk 0:07:38]} 50... Ka2
{[%clk 0:04:33]} 51. h4 {[%clk 0:06:47]} 51... b2 {[%clk 0:04:42]} 52. Rb6
{[%clk 0:07:01]} 52... b1=Q {[%clk 0:05:07]} 53. Rxb1 {[%clk 0:07:24]} 53...
Kxb1 {[%clk 0:05:34]} 54. hxg5 {[%clk 0:07:44]} 54... Bb2 {[%clk 0:05:57]} 55.
Kd3 {[%clk 0:07:51]} 55... Kc1 {[%clk 0:06:15]} 56. Ke2 {[%clk 0:07:57]} 56...
Kc2 {[%clk 0:06:34]} 57. g6 {[%clk 0:08:18]} 57... Bg7 {[%clk 0:06:55]} 58. g5
{[%clk 0:08:22]} 58... Kc3 {[%clk 0:07:16]} 59. Ke1 {[%clk 0:08:45]} 59... Kd3
{[%clk 0:07:38]} 0-1

[Variant "Standard"]
[Site "Europe Echecs"]